fUST/lending_fUST_20250727
["ID","MTS","AMOUNT","RATE_DAILY","PERIOD"]
[375312318,1753624243305,-270.27902396,0.00023525,2]
[375312320,1753624243314,-151.0,0.00023525,2]
[375312322,1753624243324,-127.72920567,0.00023525,2]
[375312331,1753624243392,-23.27079433,0.00023525,2]
[375312333,1753624243402,-151.0,0.00023525,2]
[375312335,1753624243411,-151.0,0.00023525,2]
[375312337,1753624243421,-151.0,0.00023525,2]
[375312339,1753624243430,-291.18913902,0.00023525,2]
[375312341,1753624243439,-151.0,0.00023525,2]
[375312342,1753624243448,-151.0,0.00023525,2]
[375312344,1753624243458,-151.0,0.00023525,2]
[375312346,1753624243468,-151.0,0.00023525,2]
[375312348,1753624243477,-151.0,0.00023525,2]
[375312350,1753624243487,-151.0,0.00023525,2]
[375312352,1753624243498,-151.0,0.00023525,2]
[375312355,1753624243507,-426.71732338,0.00023529,2]
[375312357,1753624243517,-500.0,0.00023529,2]
[375312359,1753624243527,-500.0,0.00023529,2]
[375312360,1753624243536,-500.0,0.00023529,2]
[375312363,1753624243545,-500.0,0.00023529,2]
[375312365,1753624243555,-500.0,0.00023529,2]
[375312366,1753624243564,-500.0,0.00023529,2]
[375312367,1753624243573,-500.0,0.00023529,2]
[375312368,1753624243582,-500.0,0.00023529,2]
[375312369,1753624243591,-138.8227614,0.00023529,2]
[375312370,1753624243603,-361.1772386,0.00023529,2]
[375312371,1753624243613,-500.0,0.00023529,2]
[375312372,1753624243622,-220.8227716,0.00023529,2]
[375312373,1753624243687,-279.1772284,0.00023529,2]
[375312374,1753624243697,-294.63366109,0.00023561,2]
[375312390,1753624243921,-460.0,0.00019178,2]
[375312392,1753624243931,-460.0,0.00019178,2]
[375312394,1753624243941,-460.0,0.00019452,2]
[375312396,1753624243951,-460.0,0.00019726,2]
[375312398,1753624243963,-460.0,0.0002,2]
[375312400,1753624243972,-460.0,0.00020273,2]
[375312402,1753624243984,-460.0,0.00020821,2]
[375312404,1753624243993,-460.0,0.00021095,2]
[375312406,1753624244003,-460.0,0.00021369,2]
[375312408,1753624244012,-460.0,0.00021643,2]
[375312410,1753624244022,-460.0,0.00021917,2]
[375312412,1753624244031,-199.18878669,0.00022191,2]
[375312414,1753624244041,-724.98,0.000232,7]
[375312416,1753624244050,-151.0,0.00023525,2]
[375312418,1753624244060,-151.0,0.00023525,2]
[375312420,1753624244069,-151.0,0.00023525,2]
[375312422,1753624244079,-151.0,0.00023525,2]
[375312424,1753624244088,-151.0,0.00023525,2]
[375312426,1753624244097,-151.0,0.00023525,2]
[375312428,1753624244106,-17.8507515,0.00023561,2]
[375312430,1753624244115,-1092.22,0.00023561,2]
[375312432,1753624244124,-460.0,0.00023561,2]
[375312434,1753624244134,-460.0,0.00023561,2]
[375312436,1753624244142,-603.44,0.00023561,2]
[375312438,1753624244152,-460.0,0.00023561,2]
[375312440,1753624244161,-460.0,0.00023561,2]
[375312442,1753624244170,-546.66,0.00023561,2]
[375312444,1753624244180,-460.0,0.00023561,2]
[375312446,1753624244190,-460.0,0.00023561,2]
[375312448,1753624244199,-982.38,0.00023561,2]
[375312450,1753624244210,-460.0,0.00023561,2]
[375312452,1753624244219,-460.0,0.00023561,2]
[375312454,1753624244228,-519.21,0.00023567,3]
[375312456,1753624244238,-3942.302754,0.0002358,2]
[375312458,1753624244248,-166.72988601,0.00023626,2]
[375312460,1753624244257,-4088.1679559,0.00023635,2]
[375312462,1753624244267,-159.37601518,0.00023644,2]
[375312463,1753624244276,-519.21,0.00023667,6]
[375312465,1753624244287,-4239.43017027,0.0002369,2]
[375312467,1753624244296,-798.14583579,0.00023695,2]
[375330603,1753624584615,5021.90127638,0.00025805,120]
[375330604,1753624939179,-150.0,0.0001862,2]
[375330605,1753624939206,-2521.0,0.00018828,2]
[375330606,1753624939232,-1200.0,0.00019177,2]
[375330607,1753624939256,-300.0,0.00019177,2]
[375330608,1753624939284,-460.0,0.00019178,2]
[375330609,1753624939313,-369.0,0.00019178,2]
[375330610,1753624977389,-150.0,0.00018578,2]
[375330611,1753625036535,1480.5,0.0001851,2]
[375330612,1753625208264,-291.44748846,0.00018549,2]
[375330613,1753625211020,-562.89602703,0.00018549,2]
[375330614,1753625212562,-464.10324285,0.00018549,2]
[375330615,1753625214191,-460.0,0.00018549,2]
[375330616,1753625216246,-460.0,0.00018549,2]
[375330617,1753625219524,-460.0,0.00018549,2]
[375330618,1753625222652,-300.0,0.00018548,2]
[375330619,1753625222675,-160.0,0.00018549,2]
[375330620,1753625224690,-460.0,0.00018549,2]
[375330621,1753625226827,-460.0,0.00018549,2]
[375330622,1753625229404,-460.0,0.00018549,2]
[375330623,1753625231125,-460.0,0.00018549,2]
[375330624,1753625234506,-460.0,0.00018549,2]
[375330625,1753625236151,-5603.60514626,0.00018549,2]
[375330626,1753625236561,-1021.56,0.00018549,2]
[375330627,1753625240403,-460.0,0.00018549,2]
[375330628,1753625241901,-183.75905393,0.00018549,2]
[375330629,1753625243631,-193.00266296,0.00018549,2]
[375330630,1753625245651,-460.0,0.00018549,2]
[375330631,1753625248389,-460.0,0.00018549,2]
[375330632,1753625249952,-460.0,0.00018549,2]
[375330633,1753625252155,-460.0,0.00018549,2]
[375330634,1753625253754,-460.0,0.00018549,2]
[375330635,1753625257155,-2208.46,0.00018549,2]
[375330636,1753625259417,-460.0,0.00018549,2]
[375330637,1753625262384,-460.0,0.00018549,2]
[375330638,1753625264511,-577.22460865,0.00018549,2]
[375330639,1753625267276,-460.0,0.00018549,2]
[375330640,1753625268834,-264.11152,0.00018549,2]
[375330641,1753625271548,-460.0,0.00018549,2]
[375330642,1753625275225,-460.0,0.00018549,2]
[375330643,1753625278625,-460.0,0.00018549,2]
[375330644,1753625281017,-180.0,0.00018549,2]
[375330645,1753625284302,-354.03965153,0.00018549,2]
[375330646,1753625286231,-460.0,0.00018549,2]
[375330647,1753625288345,-1483.3,0.00018549,2]
[375330648,1753625290319,-460.0,0.00018549,2]
[375330649,1753625293056,-460.0,0.00018549,2]
[375330650,1753625294642,-470.21744503,0.00018549,2]
[375330651,1753625296181,-302.2731533,0.00018549,2]
[375330652,1753625296206,-150.0,0.00018582,2]
[375330653,1753625357779,151.0,0.00026,120]
[375330654,1753625374091,-300.0,0.00019177,2]
[375330655,1753625374112,-460.0,0.00019178,2]
[375330656,1753625374144,-76.44256008,0.00019178,2]
[375330661,1753625433113,-383.55743992,0.00019178,2]
[375330662,1753625433123,-460.0,0.00019178,2]
[375330663,1753625433133,-460.0,0.00019178,2]
[375330664,1753625433142,-460.0,0.00019178,2]
[375330665,1753625433152,-43.22171335,0.00019178,2]
[375330675,1753625438938,-416.77828665,0.00019178,2]
[375330676,1753625438948,-776.73,0.00019178,2]
[375330677,1753625438957,-460.0,0.00019178,2]
[375330678,1753625438967,-460.0,0.00019178,2]
[375330679,1753625438976,-460.0,0.00019178,2]
[375330680,1753625438987,-460.0,0.00019178,2]
[375330681,1753625438997,-460.0,0.00019178,2]
[375330682,1753625439006,-460.0,0.00019178,2]
[375330683,1753625439016,-460.0,0.00019178,2]
[375330684,1753625439025,-462.66533975,0.00019178,2]
[375330685,1753625439035,-460.0,0.00019178,2]
[375330686,1753625439044,-460.0,0.00019178,2]
[375330687,1753625439053,-460.0,0.00019178,2]
[375330688,1753625439062,-460.0,0.00019178,2]
[375330689,1753625439071,-460.0,0.00019178,2]
[375330690,1753625439080,-460.0,0.00019178,2]
[375330691,1753625439089,-460.0,0.00019178,2]
[375330692,1753625439098,-460.0,0.00019178,2]
[375330693,1753625439107,-460.0,0.00019178,2]
[375330694,1753625439127,-560.54,0.00019178,2]
[375330695,1753625439137,-460.0,0.00019178,2]
[375330696,1753625439147,-460.0,0.00019178,2]
[375330697,1753625439156,-188.098973,0.00019178,2]
[375330698,1753625439170,-460.0,0.0001945,2]
[375330699,1753625439180,-460.0,0.0001945,2]
[375330700,1753625439190,-460.0,0.0001945,2]
[375330701,1753625439199,-460.0,0.0001945,2]
[375330702,1753625439209,-460.0,0.0001945,2]
[375330703,1753625439218,-460.0,0.0001945,2]
[375330704,1753625439228,-460.0,0.00019451,2]
[375330705,1753625439240,-460.0,0.00019451,2]
[375330706,1753625439250,-460.0,0.00019451,2]
[375330707,1753625439259,-460.0,0.00019451,2]
[375330708,1753625439268,-213.33173456,0.00019451,2]
[375330709,1753625439277,-460.0,0.00019451,2]
[375330710,1753625439287,-460.0,0.00019451,2]
[375330711,1753625439296,-460.0,0.00019451,2]
[375330712,1753625439306,-460.0,0.00019451,2]
[375330713,1753625439315,-460.0,0.00019451,2]
[375330714,1753625439324,-460.0,0.00019451,2]
[375330715,1753625439333,-661.18,0.00019451,2]
[375330716,1753625439342,-1873.76,0.00019451,2]
[375330717,1753625439351,-460.0,0.00019451,2]
[375330718,1753625439361,-460.0,0.00019451,2]
[375330719,1753625439371,-375.9567426,0.00019451,2]
[375330720,1753625439380,-460.0,0.00019451,2]
[375330721,1753625439389,-460.0,0.00019451,2]
[375330722,1753625439399,-460.0,0.00019451,2]
[375330723,1753625439408,-434.44667416,0.00019451,2]
[375330724,1753625439418,-528.92,0.00019451,2]
[375330725,1753625439427,-460.0,0.00019451,2]
[375330726,1753625439436,-460.0,0.00019451,2]
[375330727,1753625439445,-353.83,0.00019451,2]
[375330728,1753625439454,-460.0,0.00019451,2]
[375330729,1753625439464,-460.0,0.00019451,2]
[375330730,1753625439474,-460.0,0.00019451,2]
[375330731,1753625439484,-460.0,0.00019451,2]
[375330732,1753625439493,-460.0,0.00019451,2]
[375330733,1753625439502,-460.0,0.00019451,2]
[375330734,1753625439512,-460.0,0.00019451,2]
[375330735,1753625439522,-460.0,0.00019451,2]
[375330736,1753625439531,-460.0,0.00019451,2]
[375330737,1753625439540,-460.0,0.00019451,2]
[375330738,1753625439549,-460.0,0.00019451,2]
[375330739,1753625439558,-460.0,0.00019451,2]
[375330740,1753625439567,-460.0,0.00019451,2]
[375330741,1753625439577,-460.0,0.00019451,2]
[375330742,1753625439586,-460.0,0.00019451,2]
[375330743,1753625439596,-460.0,0.00019451,2]
[375330744,1753625439606,-460.0,0.00019451,2]
[375330745,1753625439615,-460.0,0.00019451,2]
[375330746,1753625439624,-493.2,0.00019451,2]
[375330747,1753625439634,-460.0,0.00019451,2]
[375330748,1753625439643,-460.0,0.00019451,2]
[375330749,1753625439652,-460.0,0.00019451,2]
[375330750,1753625439661,-460.0,0.00019451,2]
[375330751,1753625439671,-460.0,0.00019451,2]
[375330752,1753625439682,-460.0,0.00019452,2]
[375330753,1753625439691,-460.0,0.00019452,2]
[375330754,1753625439701,-160.46,0.00019452,2]
[375330755,1753625439711,-460.0,0.00019452,2]
[375330756,1753625439721,-776.73,0.00019452,2]
[375330757,1753625439731,-460.0,0.00019452,2]
[375330758,1753625439741,-460.0,0.00019452,2]
[375330759,1753625439754,-460.0,0.00019452,2]
[375330760,1753625439764,-460.0,0.00019452,2]
[375330761,1753625439774,-460.0,0.00019452,2]
[375330762,1753625439783,-460.0,0.00019452,2]
[375330763,1753625439793,-560.54,0.00019452,2]
[375330764,1753625439803,-460.0,0.00019452,2]
[375330765,1753625439812,-460.0,0.00019452,2]
[375330766,1753625439822,-150.0,0.00019507,2]
[375330767,1753625439831,-460.0,0.00019724,2]
[375330768,1753625439841,-460.0,0.00019724,2]
[375330769,1753625439851,-460.0,0.00019724,2]
[375330770,1753625439861,-460.0,0.00019725,2]
[375330771,1753625439871,-361.12,0.00019725,2]
[375330772,1753625439881,-460.0,0.00019725,2]
[375330773,1753625439891,-661.18,0.00019725,2]
[375330774,1753625439901,-1873.76,0.00019725,2]
[375330775,1753625439912,-460.0,0.00019725,2]
[375330776,1753625439922,-460.0,0.00019725,2]
[375330777,1753625439932,-460.0,0.00019725,2]
[375330778,1753625439942,-528.92,0.00019725,2]
[375330779,1753625439951,-460.0,0.00019725,2]
[375330780,1753625439960,-460.0,0.00019725,2]
[375330781,1753625439970,-460.0,0.00019725,2]
[375330782,1753625439981,-460.0,0.00019725,2]
[375330783,1753625439991,-460.0,0.00019725,2]
[375330784,1753625440000,-579.76,0.00019725,2]
[375330785,1753625440010,-460.0,0.00019725,2]
[375330786,1753625440019,-460.0,0.00019725,2]
[375330787,1753625440030,-460.0,0.00019725,2]
[375330788,1753625440039,-460.0,0.00019725,2]
[375330789,1753625440049,-493.2,0.00019725,2]
[375330790,1753625440060,-460.0,0.00019725,2]
[375330791,1753625440070,-460.0,0.00019725,2]
[375330792,1753625440079,-460.0,0.00019725,2]
[375330793,1753625440089,-460.0,0.00019725,2]
[375330794,1753625440099,-523.52,0.00019725,2]
[375330795,1753625440110,-460.0,0.00019725,2]
[375330796,1753625440119,-460.0,0.00019726,2]
[375330797,1753625440129,-460.0,0.00019726,2]
[375330798,1753625440139,-460.0,0.00019726,2]
[375330799,1753625440149,-776.73,0.00019726,2]
[375330800,1753625440159,-460.0,0.00019726,2]
[375330801,1753625440174,-460.0,0.00019726,2]
[375330802,1753625440184,-460.0,0.00019726,2]
[375330803,1753625440194,-460.0,0.00019726,2]
[375330804,1753625440205,-460.0,0.00019726,2]
[375330805,1753625440222,-201.28,0.00019726,2]
[375330806,1753625440236,-560.54,0.00019726,2]
[375330807,1753625440250,-460.0,0.00019998,2]
[375330808,1753625440263,-460.0,0.00019999,2]
[375330809,1753625440276,-460.0,0.00019999,2]
[375330810,1753625440288,-661.18,0.00019999,2]
[375330811,1753625440301,-1873.76,0.00019999,2]
[375330812,1753625440313,-460.0,0.00019999,2]
[375330813,1753625440325,-460.0,0.00019999,2]
[375330814,1753625440336,-528.92,0.00019999,2]
[375330815,1753625440347,-460.0,0.00019999,2]
[375330816,1753625440359,-460.0,0.00019999,2]
[375330817,1753625440370,-460.0,0.00019999,2]
[375330818,1753625440381,-460.0,0.00019999,2]
[375330819,1753625440394,-460.0,0.00019999,2]
[375330820,1753625440405,-206.53,0.00019999,2]
[375330821,1753625440416,-460.0,0.00019999,2]
[375330822,1753625440427,-460.0,0.00019999,2]
[375330823,1753625440438,-275.89,0.00019999,2]
[375330824,1753625440449,-493.2,0.00019999,2]
[375330825,1753625440460,-460.0,0.00019999,2]
[375330826,1753625440472,-281.44,0.00019999,2]
[375330827,1753625440483,-523.52,0.00019999,2]
[375330828,1753625440495,-460.0,0.00019999,2]
[375330829,1753625440506,-528.2,0.0002,2]
[375330830,1753625440517,-460.0,0.0002,2]
[375330831,1753625440527,-460.0,0.0002,2]
[375330832,1753625440539,-776.73,0.0002,2]
[375330833,1753625440550,-460.0,0.0002,2]
[375330834,1753625440561,-515.74,0.0002,2]
[375330835,1753625440573,-460.0,0.0002,2]
[375330836,1753625440584,-460.0,0.0002,2]
[375330838,1753625440596,-460.0,0.0002,2]
[375330840,1753625440607,-560.54,0.0002,2]
[375330841,1753625440617,-460.0,0.00020272,2]
[375330842,1753625440628,-460.0,0.00020273,2]
[375330843,1753625440639,-460.0,0.00020273,2]
[375330844,1753625440649,-776.73,0.00020273,2]
[375330845,1753625440663,-460.0,0.00020273,2]
[375330847,1753625440673,-151.76,0.00020273,2]
[375330849,1753625440683,-460.0,0.00020273,2]
[375330851,1753625440696,-661.18,0.00020273,2]
[375330853,1753625440708,-1873.76,0.00020273,2]
[375330856,1753625440719,-460.0,0.00020273,2]
[375330858,1753625440729,-460.0,0.00020273,2]
[375330860,1753625440740,-460.0,0.00020273,2]
[375330861,1753625440751,-528.92,0.00020273,2]
[375330862,1753625440762,-320.58,0.00020273,2]
[375330863,1753625440773,-460.0,0.00020273,2]
[375330864,1753625440783,-460.0,0.00020273,2]
[375330865,1753625440795,-460.0,0.00020273,2]
[375330866,1753625440806,-460.0,0.00020273,2]
[375330867,1753625440816,-460.0,0.00020273,2]
[375330868,1753625440827,-460.0,0.00020273,2]
[375330869,1753625440838,-460.0,0.00020273,2]
[375330870,1753625440848,-560.54,0.00020273,2]
[375330871,1753625440858,-493.2,0.00020273,2]
[375330872,1753625440868,-460.0,0.00020273,2]
[375330873,1753625440878,-523.52,0.00020273,2]
[375330874,1753625440888,-548.23,0.00020273,2]
[375330875,1753625440899,-150.0,0.00020394,2]
[375330876,1753625440911,-600.0,0.00020412,2]
[375330877,1753625440922,-160.0,0.00020477,2]
[375330878,1753625440932,-460.0,0.00020546,2]
[375330879,1753625440943,-220.23540611,0.00020546,2]
[375330880,1753625440954,-460.0,0.00020547,2]
[375330881,1753625440965,-460.0,0.00020547,2]
[375330882,1753625440976,-776.73,0.00020547,2]
[375330883,1753625440988,-460.0,0.00020547,2]
[375330884,1753625441000,-460.0,0.00020547,2]
[375330885,1753625441011,-661.18,0.00020547,2]
[375330886,1753625441022,-1873.76,0.00020547,2]
[375330887,1753625441033,-460.0,0.00020547,2]
[375330888,1753625441044,-460.0,0.00020547,2]
[375330889,1753625441055,-460.0,0.00020547,2]
[375330890,1753625441067,-528.92,0.00020547,2]
[375330891,1753625441078,-460.0,0.00020547,2]
[375330892,1753625441089,-481.84,0.00020547,2]
[375330893,1753625441100,-460.0,0.00020547,2]
[375330894,1753625441111,-460.0,0.00020547,2]
[375330895,1753625441123,-460.0,0.00020547,2]
[375330896,1753625441133,-460.0,0.00020547,2]
[375330898,1753625441145,-460.0,0.00020547,2]
[375330899,1753625441157,-560.54,0.00020547,2]
[375330901,1753625441175,-493.2,0.00020547,2]
[375330903,1753625441187,-566.39,0.00020547,2]
[375330905,1753625441198,-523.52,0.00020547,2]
[375330907,1753625441209,-1529.14,0.00020691,10]
[375330909,1753625441219,-1274.28,0.00020691,10]
[375330911,1753625441228,-1061.9,0.00020691,10]
[375330913,1753625441241,-9766.76847522,0.00020721,2]
[375330915,1753625441251,-460.0,0.0002082,2]
[375330917,1753625441261,-460.0,0.0002082,2]
[375330919,1753625441272,-460.0,0.0002082,2]
[375330922,1753625441283,-460.0,0.0002082,2]
[375330924,1753625441293,-460.0,0.00020821,2]
[375330926,1753625441304,-776.73,0.00020821,2]
[375330928,1753625441315,-460.0,0.00020821,2]
[375330930,1753625441326,-460.0,0.00020821,2]
[375330932,1753625441338,-661.18,0.00020821,2]
[375330934,1753625441350,-1873.76,0.00020821,2]
[375330936,1753625441361,-460.0,0.00020821,2]
[375330939,1753625441372,-460.0,0.00020821,2]
[375330941,1753625441383,-528.92,0.00020821,2]
[375330942,1753625441393,-460.0,0.00020821,2]
[375330944,1753625441403,-460.0,0.00020821,2]
[375330946,1753625441414,-460.0,0.00020821,2]
[375330949,1753625441425,-460.0,0.00020821,2]
[375330951,1753625441435,-460.0,0.00020821,2]
[375330953,1753625441445,-460.0,0.00020821,2]
[375330955,1753625441456,-560.54,0.00020821,2]
[375330957,1753625441466,-493.2,0.00020821,2]
[375330959,1753625441478,-523.52,0.00020821,2]
[375330961,1753625441490,-716.13253328,0.000209,4]
[375330963,1753625441501,-840.75038169,0.00020966,2]
[375330966,1753625441511,-477.07289566,0.00020966,2]
[375330968,1753625441522,-231.30466539,0.00020966,2]
[375330970,1753625441532,-216.01841554,0.00020966,2]
[375330972,1753625441543,-160.0,0.00020966,2]
[375330974,1753625441553,-214.84090509,0.00020966,2]
[375330976,1753625441564,-312.16666667,0.00020966,2]
[375330978,1753625441574,-150.0,0.00021,2]
[375330980,1753625441584,-500.0,0.00021,2]
[375330982,1753625441595,-151.0,0.00021,2]
[375330984,1753625441606,-151.0,0.00021,2]
[375330986,1753625441617,-151.0,0.00021,2]
[375330988,1753625441627,-151.56244739,0.00021,2]
[375330990,1753625441637,-151.51462175,0.00021,2]
[375330992,1753625441648,-500.0,0.00021,2]
[375330994,1753625441658,-151.0,0.00021,2]
[375330996,1753625441668,-151.0,0.00021,2]
[375330998,1753625441679,-500.0,0.00021,2]
[375331000,1753625441690,-151.0,0.00021,2]
[375331002,1753625441702,-500.0,0.00021,2]
[375331004,1753625441714,-151.0,0.00021,2]
[375331006,1753625441725,-151.0,0.00021,2]
[375331008,1753625441737,-151.0,0.00021,2]
[375331010,1753625441749,-253.52046372,0.00021,2]
[375331012,1753625441760,-151.0,0.00021,2]
[375331014,1753625441771,-151.0,0.00021,2]
[375331017,1753625441781,-151.0,0.00021,2]
[375331019,1753625441792,-151.0,0.00021,2]
[375331021,1753625441802,-151.0,0.00021,2]
[375331023,1753625441813,-151.0,0.00021,2]
[375331025,1753625441823,-151.0,0.00021,2]
[375331027,1753625441834,-260.0,0.00021025,2]
[375331029,1753625441844,-716.13253307,0.00021038,4]
[375331031,1753625441855,-460.0,0.00021094,2]
[375331033,1753625441865,-460.0,0.00021094,2]
[375331036,1753625441876,-460.0,0.00021094,2]
[375331038,1753625441888,-460.0,0.00021095,2]
[375331040,1753625441898,-776.73,0.00021095,2]
[375331042,1753625441908,-460.0,0.00021095,2]
[375331044,1753625441918,-460.0,0.00021095,2]
[375331046,1753625441928,-661.18,0.00021095,2]
[375331048,1753625441938,-1873.76,0.00021095,2]
[375331050,1753625441948,-460.0,0.00021095,2]
[375331052,1753625441958,-528.92,0.00021095,2]
[375331054,1753625441969,-460.0,0.00021095,2]
[375331056,1753625441979,-460.0,0.00021095,2]
[375331058,1753625441989,-460.0,0.00021095,2]
[375331060,1753625442000,-461.89543705,0.00021095,2]
[375331062,1753625442011,-460.0,0.00021095,2]
[375331064,1753625442021,-560.54,0.00021095,2]
[375331067,1753625442032,-493.2,0.00021095,2]
[375331069,1753625442041,-523.52,0.00021095,2]
[375331071,1753625442051,-476.5,0.00021144,4]
[375331073,1753625442061,-308.214,0.0002116,2]
[375331074,1753625442071,-716.13253307,0.00021176,4]
[375331077,1753625442082,-500.0,0.00021274,2]
[375331079,1753625442092,-198.0,0.00021274,2]
[375331081,1753625442105,-151.0,0.00021274,2]
[375331083,1753625442119,-151.0,0.00021274,2]
[375331085,1753625442129,-500.0,0.00021274,2]
[375331087,1753625442139,-151.0,0.00021274,2]
[375331089,1753625442150,-151.0,0.00021274,2]
[375331091,1753625442161,-500.0,0.00021274,2]
[375331093,1753625442177,-289.10496742,0.00021274,2]
[375331095,1753625442188,-500.0,0.00021274,2]
[375331097,1753625442199,-151.0,0.00021274,2]
[375331099,1753625442209,-151.0,0.00021274,2]
[375331118,1753625442382,-151.0,0.00021274,2]
[375331120,1753625442392,-239.87796106,0.00021274,2]
[375331122,1753625442402,-151.0,0.00021274,2]
[375331124,1753625442411,-151.0,0.00021274,2]
[375331126,1753625442421,-151.0,0.00021274,2]
[375331128,1753625442431,-150.0,0.0002128,2]
[375331130,1753625442440,-716.13253307,0.00021314,5]
[375331132,1753625442449,-460.0,0.00021368,2]
[375331134,1753625442459,-460.0,0.00021368,2]
[375331136,1753625442468,-460.0,0.00021368,2]
[375331138,1753625442477,-776.73,0.00021369,2]
[375331140,1753625442487,-460.0,0.00021369,2]
[375331142,1753625442496,-460.0,0.00021369,2]
[375331144,1753625442506,-661.18,0.00021369,2]
[375331146,1753625442516,-1873.76,0.00021369,2]
[375331148,1753625442530,-460.0,0.00021369,2]
[375331150,1753625442540,-528.92,0.00021369,2]
[375331152,1753625442550,-460.0,0.00021369,2]
[375331154,1753625442560,-460.0,0.00021369,2]
[375331156,1753625442569,-460.0,0.00021369,2]
[375331158,1753625442579,-460.0,0.00021369,2]
[375331160,1753625442589,-560.54,0.00021369,2]
[375331162,1753625442598,-493.2,0.00021369,2]
[375331164,1753625442607,-523.52,0.00021369,2]
[375331166,1753625442617,-716.13253307,0.00021452,5]
[375331168,1753625442626,-600.0,0.00021508,2]
[375331170,1753625442636,-500.0,0.00021548,2]
[375331172,1753625442645,-151.0,0.00021548,2]
[375331174,1753625442655,-151.0,0.00021548,2]
[375331176,1753625442664,-500.0,0.00021548,2]
[375331178,1753625442674,-151.0,0.00021548,2]
[375331180,1753625442683,-293.72464462,0.00021548,2]
[375331182,1753625442693,-500.0,0.00021548,2]
[375331184,1753625442703,-500.0,0.00021548,2]
[375331186,1753625442712,-151.0,0.00021548,2]
[375331188,1753625442721,-151.0,0.00021548,2]
[375331190,1753625442731,-151.0,0.00021548,2]
[375331192,1753625442740,-198.0,0.00021548,2]
[375331194,1753625442749,-151.0,0.00021548,2]
[375331196,1753625442759,-151.0,0.00021548,2]
[375331198,1753625442768,-247.27167015,0.00021573,2]
[375331200,1753625442778,-476.5,0.00021575,4]
[375331202,1753625442787,-716.13253307,0.0002159,5]
[375331204,1753625442800,-460.0,0.00021642,2]
[375331206,1753625442812,-460.0,0.00021642,2]
[375331208,1753625442822,-776.73,0.00021643,2]
[375331209,1753625442831,-460.0,0.00021643,2]
[375331211,1753625442841,-460.0,0.00021643,2]
[375331213,1753625442851,-661.18,0.00021643,2]
[375331215,1753625442861,-1873.76,0.00021643,2]
[375331217,1753625442870,-460.0,0.00021643,2]
[375331219,1753625442879,-528.92,0.00021643,2]
[375331221,1753625442889,-460.0,0.00021643,2]
[375331223,1753625442898,-460.0,0.00021643,2]
[375331226,1753625442908,-460.0,0.00021643,2]
[375331228,1753625442918,-460.0,0.00021643,2]
[375331230,1753625442927,-560.54,0.00021643,2]
[375331232,1753625442936,-493.2,0.00021643,2]
[375331233,1753625442946,-523.52,0.00021643,2]
[375331235,1753625442956,-716.13253307,0.00021728,5]